Cogmind - Beta 14 @@@ ROGUE MODE // 2024.08.08 @ 15:12:02 Player: weedlord420 Result: Destroyed by G-67 Veteran with Field Laser Performance ------------- Evolutions (6) 3000 Regions Visited (8) 1600 Robots Destroyed (49) 245 Value Destroyed (2434) 2434 Prototype IDs (8) 160 Alien Tech Used (0) 0 Bonus (1318) 1318 TOTAL SCORE: 8757 Bonus ------- High Alert Combat Kills 16 Follower Combat Kills 507 Entered DSFs 500 Registered with UFD 300 Friendly Fire -5 Cogmind --------- Core Integrity 0/1150 Matter 276/300 Energy 99/100 System Corruption 2% Temperature Cool (0) Movement Core (50) Location -4/Factory Parts ------- > --- POWER (2) -------- (None) > --- PROPULSION (4) --- (None) > --- UTILITY (10) ----- Advanced Signal Interpreter A0-MCA's Component Scanner > --- WEAPON (3) ------- Dirty Datajack > --- INVENTORY (5) ---- Active Sensor Suite Cobbler Unit Peak State ------------ > --- POWER ------------ Hybrid Fission Core Light Antimatter Reactor > --- PROPULSION ------- Improved Medium Treads Improved Medium Treads Advanced Medium Treads Advanced Medium Treads > --- UTILITY ---------- Advanced Cryofiber Web Improved Cooling System Large Storage Unit Advanced Sensor Array Advanced Signal Interpreter Improved Heavy Armor Plating Improved Force Field A0-MCA's Component Scanner System Guard > --- WEAPON ----------- Improved Arc Projector Heavy Neutron Cannon Hardcell Cannon > --- INVENTORY -------- Light Fission Core Hybrid Fission Core Light Antimatter Reactor Advanced Power Amplifier Improved Signal Interpreter Active Sensor Suite Hardened Medium Armor Plating Hardened Medium Armor Plating Improved Light Armor Plating Cobbler Unit Dirty Datajack [Rating: 117] Favorites ----------- Power Subdweller Power Source Engine Subdweller Power Source Power Core Fission Core Reactor Light Antimatter Reactor Propulsion Light Treads Treads Light Treads Wheel Subdweller Monowheel Utility Large Storage Unit Device V3-11A's Pendant Storage Large Storage Unit Processor A0-MCA's Component Scanner Protection Layered Light Armor Plating Weapon Subdweller Machine Gun Energy Gun Subdweller Laser Energy Cannon Subdweller Beam Cannon Ballistic Gun Subdweller Machine Gun Ballistic Cannon Hardcell Cannon Impact Weapon Heavy Mace Slashing Weapon Ripper Special Melee Weapon Dirty Datajack Build | -11 -10 -10 -10 -7 -7 -5 -5 -4 ------- Run | Yrd Mat Min Sub Rec Scr Fac DSF Fac Slots Evolved 12 | . . . . . . 10 . 2 Power 1 | . . . . . . 1 . . Propulsion 2 | . . . . . . 2 . . Utility 8 | . . . . . . 6 . 2 Weapon 1 | . . . . . . 1 . . Parts Attached 84 | 7 3 . 18 . 9 11 18 18 Power 11 | 2 . . 2 . 2 1 1 3 Engine 6 | 2 . . 2 . 1 1 . . Core 3 | . . . . . 1 . 1 1 Reactor 2 | . . . . . . . . 2 Propulsion 19 | 2 . . 7 . 2 2 5 1 Treads 14 | 2 . . 3 . 2 2 5 . Leg . | . . . . . . . . . Wheel 5 | . . . 4 . . . . 1 Hover . | . . . . . . . . . Flight . | . . . . . . . . . Utility 25 | 1 1 . 3 . 1 5 6 8 Device 11 | . . . 2 . . 3 3 3 Storage 2 | 1 1 . . . . . . . Processor 3 | . . . . . . . 1 2 Hackware . | . . . . . . . . . Protection 9 | . . . 1 . 1 2 2 3 Artifact . | . . . . . . . . . Weapon 29 | 2 2 . 6 . 4 3 6 6 Energy Gun 12 | 2 . . 3 . 1 1 3 2 Energy Cannon 4 | . . . 1 . . . 1 2 Ballistic Gun 7 | . 2 . 1 . 2 2 . . Ballistic Cannon 1 | . . . . . . . . 1 Launcher . | . . . . . . . . . Special Weapon . | . . . . . . . . . Impact Weapon 1 | . . . . . . . 1 . Slashing Weapon 2 | . . . 1 . 1 . . . Piercing Weapon . | . . . . . . . . . Special Melee Weapon 2 | . . . . . . . 1 1 Unidentified Prototypes 3 | . . . 1 . 1 1 . . Corrupted Parts 1 | . . . . . . . 1 . System Corruption 6 | . . . . . . . 6 . Parts Lost 28 | . . . . . . . 8 20 Power 3 | . . . . . . . 1 2 Propulsion 5 | . . . . . . . . 5 Utility 12 | . . . . . . . 3 9 Weapon 8 | . . . . . . . 4 4 Highest Loss Streak 14 | . . . . . . . 5 14 To Critical Strikes . | . . . . . . . . . Average Slot Usage (%) 94 | . 83 85 99 100 96 86 80 84 Engine 10 | . 14 14 14 14 9 4 2 . Core 2 | . . . . . 4 5 7 5 Treads 22 | . 28 28 14 28 28 22 23 18 Wheel 4 | . . . 13 . . . . . Device 5 | . . . 8 14 . 12 14 18 Storage 12 | . 14 14 14 14 14 5 5 5 Processor 1 | . . . . . . . 4 9 Protection 6 | . . . 5 . 10 16 6 9 Energy Gun 6 | . 2 . 8 . 7 8 2 3 Energy Cannon 5 | . . . 6 14 6 . 2 4 Ballistic Gun 13 | . 23 28 12 14 13 6 5 . Peak Build Rating 117 | 6 10 9 17 16 27 60 82 117 Average Rating 27 | 4 7 9 15 16 20 51 66 99 On Entrance 24 | . 6 9 9 16 16 27 53 82 Naked Turns . | . . . . . . . . . Heaviest Build 112 | 14 31 31 38 38 42 73 66 112 Greatest Support 120 | 40 40 40 40 40 50 100 120 120 Greatest Overweight (x) 11 | . . . 1 . 1 . . 11 Average Overweight (x) . | . . . . . . . . . Largest Inventory Capacity 15 | 8 15 15 15 15 15 15 15 15 Average Capacity 14 | 6 9 15 15 15 15 15 15 14 Most Carried 15 | 5 8 11 15 15 15 14 15 15 Average Carried 13 | 1 6 10 14 15 14 7 11 14 Final Capacity 15 | 8 15 15 15 15 15 15 15 5 Final Carried 15 | 1 8 11 15 15 15 9 15 5 Class Distribution -------------------- 76% | Mutant 15% | Scavenger-Mutant 5% | Tank Dominant Class ---------------- Mutant | -10/Materials Mutant | -10/Mines Mutant | -10/Subcaves Mutant | -7/Recycling Mutant | -7/Scraptown Scavenger-Tank | -5/Factory Mutant | -5/DSF Tank | -4/Factory Resources | -11 -10 -10 -10 -7 -7 -5 -5 -4 ----------- Run | Yrd Mat Min Sub Rec Scr Fac DSF Fac Matter Collected 1511 | 270 98 42 268 . 90 . 346 397 Remotely . | . . . . . . . . . Salvage Created 2556 | . 249 10 391 . . . 880 1026 Parts 106 | . 12 . 20 . . . 34 40 Haulers Intercepted 1 | . 1 . . . . . . . Recyclers Shooed 2 | . 1 . . . . . . 1 Parts Field Recycled . | . . . . . . . . . Retrieved Matter . | . . . . . . . . . Parts Self-Destructed 14 | . . . 14 . . . . . Prevented . | . . . . . . . . . Kills | -11 -10 -10 -10 -7 -7 -5 -5 -4 ------- Run | Yrd Mat Min Sub Rec Scr Fac DSF Fac Combat Hostiles Destroyed 42 | . 4 1 6 . . . 11 20 Melee 4 | . . . . . . . . 4 Guns 14 | . 4 1 6 . . . 3 . Cannons 13 | . . . . . . . 2 11 AOE 4 | . . . . . . . 4 . Classes Destroyed 18 | . 3 1 4 . . . 5 5 Worker 1 | . . . . . . . . 1 Builder 4 | . . . . . . . . 4 Hauler 1 | . 1 . . . . . . . Recycler 1 | . 1 . . . . . . . Watcher 1 | . . . . . . . . 1 Swarmer 4 | . . . . . . . . 4 Grunt 16 | . 4 . . . . . 4 8 Brawler 1 | . . . . . . . 1 . Duelist 1 | . . . . . . . 1 . Sentry 3 | . . . 1 . . . . 2 Specialist 3 | . . . . . . . 3 . Hunter 3 | . . . . . . . 1 2 Programmer 4 | . . . . . . . . 4 Heavy 1 | . . . . . . . 1 . Artisan 1 | . . . 1 . . . . . Cobbler 2 | . . . 2 . . . . . Subdweller 5 | . . . 5 . . . . . Assembled 1 | . . 1 . . . . . . Best Kill Streak 7 | . 6 1 2 . . . 4 7 Combat Bots Only 6 | . 4 1 2 . . . 4 6 Max Kills in Single Turn 2 | . 1 1 1 . . . 2 2 Gunslinging . | . . . . . . . . . Exploded 2 | . . . . . . . 2 . Melee 1 | . . . . . . . . 1 Uniques/NPCs Destroyed . | . . . . . . . . . Combat | -11 -10 -10 -10 -7 -7 -5 -5 -4 -------- Run | Yrd Mat Min Sub Rec Scr Fac DSF Fac Hostile Shots Fired 506 | . 10 10 27 . . . 99 360 Missed 138 | . 3 3 10 . . . 25 97 Damage Taken 7134 | . 79 58 381 12 . . 2034 4570 Core 1395 | . 34 13 63 . . . 135 1150 Absorbed by Shields 743 | . . . . . . . . 743 Core Remaining (%) 80 | 100 . . . . 56 . 86 . Volleys Fired 153 | . 11 4 57 2 . . 28 51 Largest 3 | . 2 2 2 2 . . 3 3 Hottest 256 | . 46 46 120 110 . . 158 256 Shots Fired 327 | . 22 8 83 3 . . 78 133 Gun 212 | . 22 8 75 1 . . 62 44 Cannon 115 | . . . 8 2 . . 16 89 Launcher . | . . . . . . . . . Special . | . . . . . . . . . Kinetic 137 | . 22 8 28 1 . . 40 38 Thermal 127 | . . . 55 2 . . 6 64 Explosive . | . . . . . . . . . Electromagnetic 63 | . . . . . . . 32 31 Robot Hit Streak 13 | . 5 2 11 6 . . 11 13 Robot Miss Streak 5 | . 3 2 2 1 . . 5 4 Penetration Max . | . . . . . . . . . Secondary Targets 1 | . 1 . . . . . . . Max Gunslinging Chain 1 | . 1 . . . . . . . Autonomous 14 | . . . . . . . 6 8 Shots Hit Robots 236 | . 19 6 34 2 . . 58 117 Core Hits 110 | . 12 2 19 . . . 33 44 Critical Kills . | . . . . . . . . . Critical Parts Destroyed 3 | . . . . . . . . 3 Critical Strikes 7 | . . . 1 . . . . 6 Burn 1 | . . . . . . . . 1 Destroy 1 | . . . 1 . . . . . Blast 2 | . . . . . . . . 2 Smash 3 | . . . . . . . . 3 Melee Attacks 48 | . . . 6 . . . 5 37 Impact 34 | . . . . . . . 1 33 Slashing 6 | . . . 6 . . . . . Piercing 8 | . . . . . . . 4 4 Sneak Attacks . | . . . . . . . . . Combat Hostiles . | . . . . . . . . . Follow-up Attacks . | . . . . . . . . . Damage Inflicted 6597 | . 301 67 685 60 . . 1332 4152 Guns 2205 | . 301 61 685 . . . 756 402 Cannons 2916 | . . . . 58 . . 281 2577 Explosions 389 | . . . . . . . 228 161 Melee 1045 | . . . . . . . 67 978 Ramming 42 | . . 6 . 2 . . . 34 Kinetic 2249 | . 301 61 383 . . . 536 968 Thermal 2532 | . . . 302 58 . . 324 1848 Explosive . | . . . . . . . . . Electromagnetic 729 | . . . . . . . 405 324 Impact 1031 | . . . . . . . 62 969 Slashing . | . . . . . . . . . Piercing 14 | . . . . . . . 5 9 Highest Corruption 13 | . . . . . . . 13 2 Average Corruption 5 | . . . . . . . 6 1 Corruption Purged . | . . . . . . . . . Corruption Blocked . | . . . . . . . . . Effects 10 | . . . . . . . 9 1 Message Errors 3 | . . . . . . . 2 1 Matter Fused 1 | . . . . . . . 1 . Heat Flow Errors 1 | . . . . . . . 1 . Parts Fused 2 | . . . . . . . 2 . Data Loss (minor) 2 | . . . . . . . 2 . Weapon Failures 1 | . . . . . . . 1 . Overload Shots . | . . . . . . . . . Overflow Damage 352 | . . . . . . . 12 340 Projectiles 150 | . . . . . . . . 150 Explosions . | . . . . . . . . . Melee 202 | . . . . . . . 12 190 Knockbacks 14 | . . . . . . . 1 13 Impact 4 | . . . . . . . 1 3 Kinetic 8 | . . . . . . . . 8 Secondary 2 | . . . . . . . . 2 Self-Inflicted Damage 127 | . . . . . . . 51 76 Shots 2 | . . . . . . . 1 1 Rammed 7 | . 3 1 . 1 . . . 2 Targets Rammed 7 | . 3 1 . 1 . . . 2 Kicked . | . . . . . . . . . Crushed . | . . . . . . . . . Highest Temperature 316 | . 1 15 33 69 . 159 241 316 Average Temperature 81 | . 1 10 12 41 . 77 67 107 Received Heat Transfer 1174 | . 42 20 156 6 . . 279 671 Siege Activations . | . . . . . . . . . Robots Corrupted 8 | . . . . . . . 2 6 Combat Hostiles 7 | . . . . . . . 2 5 Parts Fried 13 | . . . . . . . 3 10 Impact Corruptions 12 | . . . . . . . 1 11 Robots Melted 2 | . . . . . . . 2 . Combat Hostiles . | . . . . . . . . . Parts Melted 3 | . . . . . . . 3 . Heat Transferred 1899 | . . . 375 74 . . 525 925 Parts Sabotaged . | . . . . . . . . . Parts Stolen . | . . . . . . . . . Parts Stripped . | . . . . . . . . . Power Chain Reactions 2 | . . . . . . . 1 1 Alert | -11 -10 -10 -10 -7 -7 -5 -5 -4 ------- Run | Yrd Mat Min Sub Rec Scr Fac DSF Fac Peak Influence 603 | . 102 132 . 36 . . 190 603 Initial 99 | . . 39 . . . . . 99 Average 108 | . 45 53 . 28 . . 112 223 Maximum Alert Level 2 | . . . . . . . . 2 Low Security (%) 82 | 100 100 100 . 100 . 100 100 46 Level 1 13 | . . . . . . . . 42 Level 2 3 | . . . . . . . . 10 Level 3 . | . . . . . . . . . Level 4 . | . . . . . . . . . Level 5 . | . . . . . . . . . High Security . | . . . . . . . . . Max Security . | . . . . . . . . . Sterilizations 1 | . . . . . . . 1 . Squads Dispatched 11 | . 1 . . . . . 2 8 Investigation 2 | . 1 . . . . . . 1 Extermination 2 | . . . . . . . . 2 Reinforcement 4 | . . . . . . . 2 2 Assault 1 | . . . . . . . . 1 Garrison 2 | . . . . . . . . 2 Intercept . | . . . . . . . . . Searches Triggered . | . . . . . . . . . Construction Impeded 2 | . . . . . . . . 2 Haulers Reinforced . | . . . . . . . . . Active Scanning Responses . | . . . . . . . . . Cargo Convoy Interrupts . | . . . . . . . . . Stealth | -11 -10 -10 -10 -7 -7 -5 -5 -4 --------- Run | Yrd Mat Min Sub Rec Scr Fac DSF Fac Distress Signals 2 | . 1 . . . . . . 1 Communications Jammed . | . . . . . . . . . Distress Signals . | . . . . . . . . . Times Spotted 87 | . 4 8 19 1 . . 11 44 Peak Tracking Total 6 | . 1 3 2 1 . . 4 6 Tactical Retreats 7 | . . 1 1 . . . . 5 Traps | -11 -10 -10 -10 -7 -7 -5 -5 -4 ------- Run | Yrd Mat Min Sub Rec Scr Fac DSF Fac Traps Triggered 2 | . 1 . . . . . 1 . Indirectly . | . . . . . . . . . Trap Hack Attempts . | . . . . . . . . . Triggered . | . . . . . . . . . Disarmed . | . . . . . . . . . Reprogrammed . | . . . . . . . . . Reused . | . . . . . . . . . Traps Extracted . | . . . . . . . . . Installed . | . . . . . . . . . Triggered . | . . . . . . . . . Machines | -11 -10 -10 -10 -7 -7 -5 -5 -4 ---------- Run | Yrd Mat Min Sub Rec Scr Fac DSF Fac Machines Disabled 2 | . . . . . . . . 2 Max in Single Turn 1 | . . . . . . . . 1 Garrison Access 1 | . . . . . . . . 1 Machines Repaired . | . . . . . . . . . Machines Dismantled . | . . . . . . . . . Machines Sabotaged . | . . . . . . . . . Overloaded Fab Kills . | . . . . . . . . . Hacking | -11 -10 -10 -10 -7 -7 -5 -5 -4 --------- Run | Yrd Mat Min Sub Rec Scr Fac DSF Fac Machines Accessed 9 | . . . . 1 4 1 . 3 Terminals 3 | . . . . 1 . 1 . 1 Fabricators . | . . . . . . . . . Repair Stations . | . . . . . . . . . Recycling Units 1 | . . . . . . . . 1 Scanalyzers . | . . . . . . . . . Garrison Access 1 | . . . . . . . . 1 Total Hacks 24 | . . . . 3 17 1 . 3 Successful 20 | . . . . 1 17 1 . 1 Failed 4 | . . . . 2 . . . 2 Catastrophic 1 | . . . . . . . . 1 Database Lockouts . | . . . . . . . . . Manual 2 | . . . . . . . . 2 Terminals 5 | . . . . 3 . 1 . 1 Fabricators . | . . . . . . . . . Repair Stations . | . . . . . . . . . Recycling Units 1 | . . . . . . . . 1 Scanalyzers . | . . . . . . . . . Garrison Access 1 | . . . . . . . . 1 Terminal Hacks 19 | . . . . 1 17 1 . . Record 16 | . . . . . 16 . . . Open Door 1 | . . . . . 1 . . . Open DSF 1 | . . . . . . 1 . . Zone Layout 1 | . . . . 1 . . . . Fabricator Hacks . | . . . . . . . . . Repair Station Hacks . | . . . . . . . . . Recycling Unit Hacks . | . . . . . . . . . Scanalyzer . | . . . . . . . . . Garrison Access Hacks . | . . . . . . . . . Unauthorized Hacks 1 | . . . . . . . . 1 Terminals . | . . . . . . . . . Fabricators . | . . . . . . . . . Repair Stations 1 | . . . . . . . . 1 Recycling Units . | . . . . . . . . . Fedlink 1 | . . . . . . . . 1 Scanalyzers . | . . . . . . . . . Garrison Access . | . . . . . . . . . Data Cores Recovered . | . . . . . . . . . Used . | . . . . . . . . . Hacking Detections 3 | . . . . 1 . . . 2 Full Trace Events . | . . . . . . . . . Feedback Events . | . . . . . . . . . Feedback Blocked . | . . . . . . . . . Robot Schematics Acquired . | . . . . . . . . . Robots Built . | . . . . . . . . . Authchips . | . . . . . . . . . Time . | . . . . . . . . . Total Robot Build Rating . | . . . . . . . . . Part Schematics Acquired . | . . . . . . . . . Parts Built . | . . . . . . . . . Authchips . | . . . . . . . . . Time . | . . . . . . . . . Total Part Build Rating . | . . . . . . . . . Parts Repaired . | . . . . . . . . . Time . | . . . . . . . . . Parts Recycled . | . . . . . . . . . Recycled Matter . | . . . . . . . . . Retrieved Matter . | . . . . . . . . . Retrieved Components . | . . . . . . . . . Parts Scanalyzed . | . . . . . . . . . Part Schematics Acquired . | . . . . . . . . . Parts Damaged . | . . . . . . . . . Bothacking | -11 -10 -10 -10 -7 -7 -5 -5 -4 ------------ Run | Yrd Mat Min Sub Rec Scr Fac DSF Fac Used RIF Installer . | . . . . . . . . . Robots Hacked . | . . . . . . . . . Non-combat . | . . . . . . . . . Combat . | . . . . . . . . . Robot Hacks Applied . | . . . . . . . . . Relay Couplers Released 2 | . . . . . . . . 2 Machine Destruction 2 | . . . . . . . . 2 Fabnet Peak Effective % . | . . . . . . . . . Robots Rewired 1 | . . . . . . . . 1 Allies Hacked . | . . . . . . . . . Hacks Repelled . | . . . . . . . . . Allies | -11 -10 -10 -10 -7 -7 -5 -5 -4 -------- Run | Yrd Mat Min Sub Rec Scr Fac DSF Fac Total Allies 18 | . . 6 10 . . . . 2 Largest Group 8 | . . 3 8 5 2 2 2 1 Highest-Rated Group 152 | . . 55 152 95 38 38 38 116 Highest-Rated Ally 116 | . . 31 31 19 19 19 19 116 Total Orders . | . . . . . . . . . Ally Attacks 136 | . . 65 38 15 . . 12 6 Total Damage 2259 | . . 816 546 262 . . 222 413 Kills 25 | . . 12 7 2 . . . 4 Allies Corrupted . | . . . . . . . . . Allies Melted . | . . . . . . . . . Intel | -11 -10 -10 -10 -7 -7 -5 -5 -4 ------- Run | Yrd Mat Min Sub Rec Scr Fac DSF Fac Robot Analysis Total . | . . . . . . . . . Derelict Logs Recovered 9 | . . 1 3 . 5 . . . Drone Launches . | . . . . . . . . . Drone Recoveries . | . . . . . . . . . Exploration | -11 -10 -10 -10 -7 -7 -5 -5 -4 ------------- Run | Yrd Mat Min Sub Rec Scr Fac DSF Fac Turns Passed 10335 | 54 291 1117 3531 306 3449 154 353 1080 Spaces Moved 5878 | 35 136 540 2409 167 1955 80 130 426 Core 35 | 17 . . . . . . . 18 Treads 4493 | 18 136 540 1060 167 1955 80 130 407 Legs . | . . . . . . . . . Wheels 1350 | . . . 1349 . . . . 1 Hover . | . . . . . . . . . Flight . | . . . . . . . . . Fastest Speed 50 | 50 160 160 110 160 160 165 148 50 Average Speed 153 | 106 160 160 134 160 174 165 155 158 Slowest Speed 600 | 160 160 160 160 160 255 165 165 600 Overloaded Moves . | . . . . . . . . . Propulsion Burnouts . | . . . . . . . . . Robots Hopped . | . . . . . . . . . Cave-ins Triggered . | . . . . . . . . . Exploration Rate (%) 49 | 4 27 96 95 33 89 2 86 10 Regions Visited 8 Branch Regions 4 Pre-discovered Areas 2 | . . . 1 . 1 . . . Known Exits Taken 1 | . . . . . . 1 . . Unknown Exits Taken 6 | 1 1 1 1 1 1 . . . Scrap Searched 17 | . . 1 5 . 11 . . . Spaces Dug 5 | . . . 4 . . . . 1 Terrain Destroyed 43 | . . . 5 . . . 2 36 Melee 4 | . . . 3 . . . . 1 Projectile 20 | . . . 2 . . . . 18 AOE 19 | . . . . . . . 2 17 Terrain Rammed . | . . . . . . . . . Walls Destroyed . | . . . . . . . . . Machines Disabled . | . . . . . . . . . Actions | -11 -10 -10 -10 -7 -7 -5 -5 -4 --------- Run | Yrd Mat Min Sub Rec Scr Fac DSF Fac Total 6839 | 50 187 785 2617 202 2002 104 223 669 Wait 537 | 4 23 238 86 33 22 4 18 109 Move 5870 | 34 135 539 2408 166 1954 79 129 426 Hop . | . . . . . . . . . Pick Up 74 | 5 9 3 19 . 7 5 17 9 Fast Attach 19 | 2 1 . 5 . 4 . 2 5 Attach 37 | 4 2 . 3 . . 10 10 8 Detach 4 | . . . . . . 1 2 1 Swap 28 | 1 . . 10 . 5 1 6 5 Drop 52 | . 3 . 23 . 10 4 6 6 Fire 153 | . 11 4 57 2 . . 28 51 Melee 48 | . . . 6 . . . 5 37 Ram . | . . . . . . . . . Kick . | . . . . . . . . . Crush 7 | . 3 1 . 1 . . . 2 Escape Stasis . | . . . . . . . . . Rewire 10 | . . . . . . . . 10 Trap . | . . . . . . . . . Miscellaneous . | . . . . . . . . . Route ------- -11/Scrapyard -10/Materials -10/Mines (discovered 3 exits: [*Mat x2] / [*Sub]) -10/Subcaves (discovered 3 exits: [*Mat x2] / *Rec) -7/Recycling -7/Scraptown (discovered 2 exits: *Fac x2) -5/Factory -5/DSF -4/Factory (discovered 1 exit: Ext) History --------- Turn | Location | Event 8 | -11/Scrapyard | Discovered new exit (range 15) 55 | -11/Scrapyard | Entered Materials 268 | -10/Materials | Discovered new exit (range 14) 308 | -10/Materials | Build established: Mutant 346 | -10/Materials | Entered Mines 495 | -10/Mines | Assembled infested the area 736 | -10/Mines | Discovered new exit (range 9) 749 | -10/Mines | Assisted by bots powering up and referring to "LRC-V3" 829 | -10/Mines | Discovered new exit (range 15) 837 | -10/Mines | Escorted by a lone wolf Derelict 1002 | -10/Mines | Learned Materials terminal intel 1431 | -10/Mines | Discovered new exit (range 13) 1463 | -10/Mines | Entered Subcaves 1463 | -10/Subcaves | Accompanied by 3 allies 1582 | -10/Subcaves | Shifting Twisted Machinery released Sub. Laser 1757 | -10/Subcaves | Ambushed by angry Subdweller bent on revenge 1859 | -10/Subcaves | Discovered new exit (range 12) 2000 | -10/Subcaves | Ambushed by Subdwellers from Twisted Machinery 2087 | -10/Subcaves | A swath of the cavern ceiling suddenly collapsed 2189 | -10/Subcaves | Learned Materials stockpile data 2336 | -10/Subcaves | Build established: Scavenger-Mutant 2916 | -10/Subcaves | Visited triangular shrine 2925 | -10/Subcaves | Found Prototype Device 2925 | -10/Subcaves | Identified V3-11A's Pendant 2930 | -10/Subcaves | Befriended Subdweller 3005 | -10/Subcaves | Befriended Subdweller 3045 | -10/Subcaves | Befriended Subdweller 3055 | -10/Subcaves | Befriended Subdweller 3070 | -10/Subcaves | Befriended Subdweller 3070 | -10/Subcaves | Befriended Subdweller 3110 | -10/Subcaves | Befriended Subdweller 3150 | -10/Subcaves | Befriended Subdweller 3200 | -10/Subcaves | Shifting Twisted Machinery released Sub. Monowheel 3335 | -10/Subcaves | Befriended Subdweller 3610 | -10/Subcaves | Build established: Mutant 3928 | -10/Subcaves | Discovered new exit (range 11) 3961 | -10/Subcaves | Discovered new exit (range 10) 4025 | -10/Subcaves | Befriended Subdweller 4510 | -10/Subcaves | Learned location of Storage (-7) 4994 | -10/Subcaves | Entered Recycling 4994 | -7/Recycling | Accompanied by 5 allies 5071 | -7/Recycling | Lost 3 allies 5229 | -7/Recycling | Scanned before Scraplab entrance 5262 | -7/Recycling | Entered Scraplab 5291 | -7/Recycling | Discovered new exit (range 3) 5300 | -7/Recycling | Entered Scraptown 5300 | -7/Scraptown | Accompanied by 2 allies 5426 | -7/Scraptown | Delivered V3-11A's Pendant to T0-NE2 in exchange for information 5662 | -7/Scraptown | Visited UFD Registry 5685 | -7/Scraptown | Visited SPCMW 5763 | -7/Scraptown | Visited Cave Peace 5818 | -7/Scraptown | Visited Bundlers 5934 | -7/Scraptown | Scanned Subdweller tech in exchange for log data 5937 | -7/Scraptown | Learned Factory terminal intel 5939 | -7/Scraptown | Learned Research stockpile data 5942 | -7/Scraptown | Learned Factory emergency access door positions 5944 | -7/Scraptown | Learned location of Zion (-6) 6276 | -7/Scraptown | Discovered new exit (range 13) 6396 | -7/Scraptown | Visited CPS Storage 6480 | -7/Scraptown | Visited Artisan Demo Area 6626 | -7/Scraptown | Visited Comm Corps 6761 | -7/Scraptown | Registered with UFD as "Kinetiform" 6832 | -7/Scraptown | Visited Curators Association 6868 | -7/Scraptown | Visited Sword Containment 7124 | -7/Scraptown | Visited Scrap Suit Storage 7192 | -7/Scraptown | Visited Cartography Club 7463 | -7/Scraptown | Visited Abandonware Association 7484 | -7/Scraptown | Learned abandonware demo "TRNCOAT.EXE" 7484 | -7/Scraptown | Learned abandonware demo "KABOOM.EXE" 7532 | -7/Scraptown | Visited Supply Room 7698 | -7/Scraptown | Delivered Scrap Shield to a Scientist 7862 | -7/Scraptown | Visited DA-N13 Charitable Foundation 7870 | -7/Scraptown | Found DCF Scrap (29 items) 7918 | -7/Scraptown | Visited A0-MCA Data Center 7929 | -7/Scraptown | Given a B+ rating by A0-MCA 7931 | -7/Scraptown | Found A0-MCA's Component Scanner 8475 | -7/Scraptown | Visited LU-1G1's Boring Crew 8736 | -7/Scraptown | Discovered new exit (range 5) 8749 | -7/Scraptown | Entered Factory 8749 | -5/Factory | Accompanied by 2 allies 8749 | -5/Factory | Evolved 10 slots: Power x1, Propulsion x2, Utility x6, Weapon x1 8751 | -5/Factory | Loaded intel: 26 terminal locations 8902 | -5/Factory | Identified exit to DSF 8903 | -5/Factory | Entered DSF 8903 | -5/DSF | Accompanied by 2 allies 8942 | -5/DSF | Additional patrols routed to DSF 9088 | -5/DSF | Found Active Sensor Suite 9155 | -5/DSF | Sterilization system engaged 9155 | -5/DSF | System corruption reached 10% 9175 | -5/DSF | Ambient heat levels rising (+10) 9178 | -5/DSF | Lost 5 parts (1u4w) 9190 | -5/DSF | Ambient heat levels rising (+10) 9197 | -5/DSF | Discovered new exit (range 15) 9205 | -5/DSF | Ambient heat levels rising (+10) 9220 | -5/DSF | Ambient heat levels rising (+10) 9235 | -5/DSF | Ambient heat levels rising (+10) 9250 | -5/DSF | Ambient heat levels rising (+10) 9256 | -5/DSF | Entered Factory 9256 | -4/Factory | Evolved 2 slots: Utility x2 9257 | -4/Factory | Identified exit to Extension 9521 | -4/Factory | Build established: Scavenger-Mutant 10028 | -4/Factory | Build established: Tank 10144 | -4/Factory | Garrison activated, responded to threat 10257 | -4/Factory | Spotted B-86 Titan 10310 | -4/Factory | Core integrity fell below 50% 10330 | -4/Factory | Core integrity fell below 20% 10336 | -4/Factory | Destroyed by G-67 Veteran with Field Laser Last Messages --------------- 10320_ Network quickbooting B-86 Titan, ETC: 10. 10322_ K-01 Serf collects debris. 10324_ R-10 Processor collects Lgt. Antimatter Reactor. 10326_ K-01 Serf collects debris. 10327_ R-10 Processor collects Lgt. Ion Engine. 10327_ K-01 Serf collects debris. 10327_ G-67 Veteran IFF system glitched. 10330_ K-01 Serf collects debris. 10330_ B-86 Titan reactivates. 10330_ Penetrated by Slug. 10330_ Lrg. Storage Unit destroyed. 10330_ Splicing B-86 Titan... Deactivating 3 weapon systems. 10331_ K-01 Serf collects debris. 10331_ Acquired 7 matter. 10332_ R-10 Processor collects Corrupted Wheel. 10332_ K-01 Serf collects debris. 10333_ #3OF3KASXYVI510UUAZETK7ALQNGUMUFSBAPA| 10335_ Penetrated by Slug. Map ----- +----------------------------------------------------+ | ?????????????????????????????????????????????????? | | ?????????????????????????????????????????????????? | | ?????????????????????????????????????????????????? | | ????????????????????????????????????????########## | | ??????????????????????????????########### """" | | ??????????????????????????????# # ""S"" | | ??????????????????????????????# # "" "" | | ??????????????????????????????# # | | ??????????????????????????????# # !! | | ??????????????????????????????# # !! | | ??????????????????????????????# # !! | | ?????????????????????#????????? ######"### | | ?????????????????????# ????????? " " # | | ?????????????????????# ###########+#"####### %%# | | ?????????????????????#^ ""G" ! % ! %! % | | ?????????????????????# "" ""! "#"##"##""## %% # | | ?????????????????????# % # !] "# #= %%%# | | ?????????????????????# % %!! " %"####### ### | | ?????????????????????# |# #?????#"%#?? | | ??????????????????#### !% %#% #?????##*#?? | | ?????????????# =![ !"% % #??????# #?? | | ?????????????# ######## *!*! # #??????# #?? | | ????????????????????????# #*!! # #?????#" #?? | | ????????????????????????#g##### # #?????##%#?? | | ????????????????????????# #???# #######??????#+#?? | | ?????????????????########@##### #######?????? %?? | | ?????????????????# + +?????? !=?? | | ?????????????????# #+#######?????? ?? | | ?????????????????# !!! " " #?????????????? ?? | | ?????????????????# !! " " #??????????????###?? | | ?????????????????# !! " " #??????????????????? | | ?????????????????# ! " " #??????????????????? | | ?????????????????# " " #??????????????????? | | ?????????????????# " " #??????????????????? | | ?????????????????# " " #??????????????????? | | ?????????????????# "" "" " " #??????????????????? | | ?????????????????# ""R"" " " #??????????????????? | | ?????????????????+? ""?" ???????????????????? | | ???????????????????????#### ##???????????????????? | | ???????????????????????????#?????????????????????? | | ?????????????????????????????????????????????????? | | ?????????????????????????????????????????????????? | | ?????????????????????????????????????????????????? | | ?????????????????????????????????????????????????? | | ?????????????????????????????????????????????????? | | ?????????????????????????????????????????????????? | | ?????????????????????????????????????????????????? | | ?????????????????????????????????????????????????? | | ?????????????????????????????????????????????????? | | ?????????????????????????????????????????????????? | +----------------------------------------------------+ Best States ------------- Heat Dissipation 89 Energy Generation 31 Energy Capacity 970 Matter Stores 300 Matter Capacity 300 Sight Range 21 Robot Scan Range 16 Terrain Scan Density 10 Base Temperature (-) 200 Corruption Containment 8 Armor Coverage 1200 Evasion (%) 50 Recoil Reduction 4 Item Schematics ----------------- None Robot Schematics ------------------ None Fabricated ------------ Nothing Alien Tech Used ----------------- None Achievements -------------- Error 47 Challenges ------------ None Game ------ Seed LatentFissionScrap Manual? 0 Play Time 01:10:19 Cumulative 68.8 hours Start 2024.08.08 @ 13:04:37 End 2024.08.08 @ 15:12:02 Sessions 1 Manual Loads 0 Difficulty Rogue Special Mode None Game No. 119 Rogue 118 Adventurer 1 Explorer 0 Win Type - Total 0 Types 0/0/0/0/0/0/0/0/0 Lore% 41 Gallery% 45 Achievement% 39 Wizard Run 0 Options --------- Layout 1 ASCII 0 Keyboard 0 Movement Mouse Keybinds 0 Fullscreen 1 Font 48/Smallcaps Map View 50x35 Zoom Use 0% Tactical HUD 1 Map Filters NONE Filters NONE Steam 1 RUN: 5bb061df-4f9c-4439-9638-4e109121e811